Workbook

Sheet 9-14, 23-28.01.2023
A1: Школа | B1: МБОУ "Гимназия 155 с татарским языком обучения" | E1: Отд./корп | I1: День | J1: 2023-05-17
A3: Прием пищи | B3: Раздел | C3: № рец. | D3: Блюдо | E3: Выход, г | F3: Цена | G3: Калорийность | H3: Белки | I3: Жиры | J3: Углеводы
A4: Завтрак | B4: ='[1]01-06.05, 15-20.05'!B21 -> гор.блюдо | C4: ='[1]01-06.05, 15-20.05'!C21 -> ТТК 2021 г | D4: ='[1]01-06.05, 15-20.05'!D21 -> Гуляш из говядины | E4: 35/35 | G4: ='[1]01-06.05, 15-20.05'!G21 -> 134.00 | H4: ='[1]01-06.05, 15-20.05'!H21 -> 10.64 | I4: ='[1]01-06.05, 15-20.05'!I21 -> 8.37 | J4: ='[1]01-06.05, 15-20.05'!J21 -> 3.99
B5: ='[1]01-06.05, 15-20.05'!B22 -> гор.блюдо | C5: ='[1]01-06.05, 15-20.05'!C22 -> № 304/2015 г | D5: ='[1]01-06.05, 15-20.05'!D22 -> Рис отварной | E5: ='[1]01-06.05, 15-20.05'!E22 -> 150 | G5: ='[1]01-06.05, 15-20.05'!G22 -> 224.00 | H5: ='[1]01-06.05, 15-20.05'!H22 -> 3.83 | I5: ='[1]01-06.05, 15-20.05'!I22 -> 5.43 | J5: ='[1]01-06.05, 15-20.05'!J22 -> 40.01
B6: ='[1]01-06.05, 15-20.05'!B23 -> гор.напиток | C6: ='[1]01-06.05, 15-20.05'!C23 -> ТТК 2023 г | D6: ='[1]01-06.05, 15-20.05'!D23 -> чай с сахаром | E6: 180/7 | G6: ='[1]01-06.05, 15-20.05'!G23 -> 43.00 | H6: ='[1]01-06.05, 15-20.05'!H23 -> 0.10 | I6: ='[1]01-06.05, 15-20.05'!I23 -> 0.03 | J6: ='[1]01-06.05, 15-20.05'!J23 -> 10.41
B7: ='[1]01-06.05, 15-20.05'!B24 -> хлеб | C7: ='[1]01-06.05, 15-20.05'!C24 -> 0 | D7: ='[1]01-06.05, 15-20.05'!D24 -> Хлеб ржано-пшеничный | E7: ='[1]01-06.05, 15-20.05'!E24 -> 15 | G7: ='[1]01-06.05, 15-20.05'!G24 -> 33.00 | H7: ='[1]01-06.05, 15-20.05'!H24 -> 0.75 | I7: ='[1]01-06.05, 15-20.05'!I24 -> 0.15 | J7: ='[1]01-06.05, 15-20.05'!J24 -> 6.75
B8: ='[1]01-06.05, 15-20.05'!B25 -> хлеб | C8: ='[1]01-06.05, 15-20.05'!C25 -> 0 | D8: ='[1]01-06.05, 15-20.05'!D25 -> Хлеб пшеничный | E8: 15 | G8: ='[1]01-06.05, 15-20.05'!G25 -> 47.00 | H8: ='[1]01-06.05, 15-20.05'!H25 -> 1.52 | I8: ='[1]01-06.05, 15-20.05'!I25 -> 0.16 | J8: ='[1]01-06.05, 15-20.05'!J25 -> 9.84
B9: ='[1]01-06.05, 15-20.05'!B26 -> 0 | C9: ='[1]01-06.05, 15-20.05'!C26 -> ТТК | D9: Ассорти овощные (помидоры, огурцы) - доп.гарнир | E9: 30/30/5 | G9: ='[1]01-06.05, 15-20.05'!G26 -> 55.00 | H9: ='[1]01-06.05, 15-20.05'!H26 -> 0.54 | I9: ='[1]01-06.05, 15-20.05'!I26 -> 5.08 | J9: ='[1]01-06.05, 15-20.05'!J26 -> 1.71
A13: ИТОГО | F13: 62.10
